[Event "SixDays Budapest May IM 2023"]
[Site "Budapest"]
[Date "2023.05.30"]
[Round "6.5"]
[White "Arvind Ramnath Iyer"]
[Black "Semprun Martinez, Fernando"]
[Result "1/2-1/2"]
[Annotator "TA"]
[ECO "B12"]
[WhiteElo "1883"]
[BlackElo "2125"]
[PlyCount "47"]
[EventDate "2023.05.25"]
[EventType "tourn"]
[EventCountry "HUN"]
[SourceTitle "playchess.com"]
[Source "ChessBase"]
[SourceQuality "1"]
[TimeControl "5400+30"]

{[%evp 9,47,-10,-32,-82,-62,-54,-47,-47,-63,-67,-22,-34,76,73,77,66,87,-34,-40,-147,-97,-95,-93,-120,-100,-122,-121,-120,-98,-189,-61,-94,-96,-98,0,0,78,75,253,243]} 1. e4 {[%emt 0:01:08]} c6 {[%emt 0:00:32]} 2. d4 {[%emt 0:00:10]} d5 {[%emt 0:00:06]} 3. e5 {[%emt 0:00:03]} Bf5 {[%emt 0:00:07]} 4. h4 {[%emt 0:00:04]} h5 {[%emt 0:00:09]} 5. Bg5 {[%emt 0:00:06]} Qb6 {[%emt 0:01:40]} 6. Bd3 {[%emt 0:00:04] B12: Caro-Kann: Advance Variation.} (6. b3 $15) 6... Qxd4 {[%emt 0:00:40]} 7. Nf3 $1 {[%emt 0:00:37]} Qg4 {[%emt 0:00:02]} 8. Bxf5 $1 {[%emt 0:01:35] Black is slightly better. 8.Bxf5 is better than 8.0-0.} Qxf5 {[%emt 0:00:03]} 9. O-O {[%emt 0:00:43][%cal Oc2c4]} e6 {[%emt 0:05:01]} 10. c4 $1 {[%emt 0:02:17]} Ne7 {[%emt 0:01:13]} (10... dxc4 $2 11. Qd8#) (10... Nd7 $15 {keeps the upper hand.}) 11. Qb3 $16 {[%emt 0:02:25][%mdl 1024] White has strong compensation.} b6 {[%emt 0:15:18] Black is weak on the dark squares} 12. Nc3 {[%emt 0:04:56] [#]} Nd7 $146 {[%emt 0:01:08]} ({Predecessor:} 12... f6 13. cxd5 exd5 14. exf6 gxf6 15. Rfe1 fxg5 16. Re5 Qd7 17. Rd1 Na6 18. Nxd5 cxd5 19. Rdxd5 {½-½ Modi,K (1772)-Munshi,A (1986) Coventry 4NCL op-A 16th 2017 (5)}) 13. Rfe1 {[%emt 0:03:58]} ({White should try} 13. Rad1 $16) 13... Nc5 $36 {[%emt 0:07:19][%mdl 2048] Black fights for an advantage.} 14. Qd1 {[%emt 0:02:38]} (14. Qa3 $1 $15) 14... Qd3 {[%emt 0:02:29]} (14... dxc4 $142 15. Nd4 Qd3 16. Bxe7 Bxe7 17. Nxc6 a6) 15. cxd5 $17 {[%emt 0:05:16] [#] Hoping for d6.} Qxd1 {[%emt 0:00:52]} (15... exd5 $6 16. b4 $11) 16. Raxd1 {[%emt 0:00:34] aiming for Bxe7.} Nxd5 {[%emt 0:04:40]} 17. Nxd5 {[%emt 0:01:28]} cxd5 {[%emt 0:02:12]} 18. Nd4 {[%emt 0:04:13]} Kd7 {[%emt 0:02:32]} 19. f4 {[%emt 0:05:54]} (19. Re3 $17) 19... Be7 {[%emt 0:01:46]} (19... Ne4 $19 {White must now prevent ...Bc5.} 20. f5 Bc5) 20. b4 {[%emt 0:01:55]} Bxg5 {[%emt 0:08:35]} 21. fxg5 {[%emt 0:00:23]} Na6 {[%emt 0:02:17]} (21... Ne4 $17 22. Re3 Rhf8) 22. a3 {[%emt 0:00:14]} Rhc8 {[%emt 0:07:28]} (22... Rac8 $11) 23. Rf1 $16 {[%emt 0:04:18] White is more active.} Ke8 {[%emt 0:03:15] [#]} (23... Rf8 $16) 24. Rd3 {[%emt 0:01:38] Weighted Error Value: White=0.28 (precise) /Black=0.50} ({But not} 24. g6 $6 fxg6 25. Rd3 (25. Nxe6 Ke7 $16) 25... Nb8 26. Nxe6 {[%mdl 64] Discovered Attack} Nc6 27. Rxd5 (27. Nxg7+ Ke7 $16) 27... Ke7 $18) 1/2-1/2

[Event "SixDays Budapest May IM 2023"]
[Site "Budapest"]
[Date "2023.05.31"]
[Round "7.1"]
[White "Semprun Martinez, Fernando"]
[Black "Szeberenyi, Adam"]
[Result "1-0"]
[Annotator "TA"]
[ECO "E10"]
[WhiteElo "2125"]
[BlackElo "2338"]
[PlyCount "79"]
[EventDate "2023.05.25"]
[EventType "tourn"]
[EventCountry "HUN"]
[SourceTitle "playchess.com"]
[Source "ChessBase"]
[SourceQuality "1"]
[TimeControl "5400+30"]

{[%evp 9,79,43,43,43,37,32,33,0,86,95,98,91,96,107,137,137,141,144,127,146,145,142,144,131,200,194,200,188,183,177,179,172,194,191,173,181,187,187,285,261,571,585,749,499,617,633,626,621,606,626,622,605,644,635,631,637,625,542,633,633,772,697,897,899,911,859,953,932,1877,1813,1249,1120]} 1. d4 {[%emt 0:01:59][%cal Bd2d4,Bd4d5][%mdl 32]} Nf6 {[%emt 0:00:36]} 2. c4 {[%emt 0:00:06]} e6 {[%emt 0:00:54]} 3. Nf3 {[%emt 0:00:04]} c5 {[%emt 0:03:43]} 4. d5 {[%emt 0:01:22]} b5 {[%emt 0:00:04]} 5. Bg5 {[%emt 0:00:28]} b4 {[%emt 0:00:09]} 6. e4 {[%emt 0:01:31] Hoping for e5. E10: Blumenfeld Gambit.} d6 {[%emt 0:01:14]} 7. Nbd2 {[%emt 0:01:18] was the old line (7.Bd3).} Be7 {[%emt 0:00:13]} 8. Be2 {[%emt 0:05:43] White is slightly better.} Nxd5 {[%emt 0:10:19]} 9. exd5 $16 {[%emt 0:02:21] Black is now going downhill.} Bxg5 {[%emt 0:00:04]} 10. Nxg5 {[%emt 0:02:24]} Qxg5 {[%emt 0:00:09] [#]} 11. dxe6 $1 {[%emt 0:03:08] [#]} Bxe6 $146 {[%emt 0:18:19][%cal Ob8c6]} ({Predecessor:} 11... Bb7 12. Bf3 Qe5+ 13. Kf1 d5 14. exf7+ Kxf7 15. Nb3 {1-0 Eichner,S (2335)-Sobolevsky,L (2244) Leipzig VfB op 21st 2014 (4)}) 12. Bf3 {[%emt 0:04:36] Dodges Nc6} Qe5+ {[%emt 0:00:20]} 13. Qe2 {[%emt 0:00:44]} Qxe2+ {[%emt 0:00:08]} 14. Kxe2 {[%emt 0:00:04]} d5 {[%emt 0:00:02]} 15. cxd5 {[%emt 0:01:59]} (15. Bxd5 $6 Bxd5 16. cxd5 Nd7 $14) 15... Bd7 {[%emt 0:00:02]} 16. Ne4 {[%emt 0:02:27][%cal Bd2e4,Be4c5,Bc5b7,Bb7a5,Ba5c6][%mdl 32]} O-O {[%emt 0:10:40]} (16... Na6 $16 17. Rhc1 f5) 17. Nxc5 $18 {[%emt 0:00:35]} Bb5+ {[%emt 0:00:10] Black is weak on the light squares} 18. Ke3 {[%emt 0:03:41]} Re8+ {[%emt 0:13:00]} 19. Kd4 {[%emt 0:00:42] aiming for Rhe1.} Rd8 {[%emt 0:00:48]} 20. Nb7 {[%emt 0:09:24]} Rd7 {[%emt 0:01:33] [#]} 21. Na5 {[%emt 0:04:44][%cal Od5d6] Black must now prevent d6!} Na6 {[%emt 0:04:28]} 22. Rac1 {[%emt 0:06:31]} Rad8 {[%emt 0:06:11]} 23. Rhe1 $36 {[%emt 0:00:30][%mdl 2048] Wards off Be2. White has strong initiative.} Nc7 {[%emt 0:08:54]} (23... Kf8 {was called for.} 24. h4 (24. Nc6 Bxc6 25. Rxc6 Nc7 $16) 24... h5) 24. Kc5 {[%emt 0:10:54]} Bd3 $2 {[%emt 0:16:40]} (24... Rb8 25. Nc6 (25. Kxb4 Be2+ 26. Ka3 Bxf3 $16) 25... Na6+ 26. Kd4 Bxc6) 25. Nc6 {[%emt 0:02:54] White is clearly winning.} Rc8 {[%emt 0:00:25]} 26. Kd4 {[%emt 0:06:55][%cal Bc5d4,Bd4e3,Be3d2,Bd2c3,Bc3b3][%mdl 32] Threatens to win with Ne7+.} Bg6 {[%emt 0:03:44]} 27. Ne7+ {[%emt 0:01:55]} Rxe7 {[%emt 0:00:04]} 28. Rxe7 {[%emt 0:00:02]} Nb5+ {[%emt 0:00:05]} 29. Ke3 {[%emt 0:00:21][%cal Rc1c8]} Rd8 {[%emt 0:00:11]} 30. Rc6 {[%emt 0:05:13]} Kf8 {[%emt 0:00:48]} 31. Rb7 {[%emt 0:01:38]} Re8+ {[%emt 0:01:24]} 32. Kd2 {[%emt 0:00:13]} Nd4 {[%emt 0:00:05]} 33. Rxa7 {[%emt 0:00:14]} Rd8 {[%emt 0:01:02]} 34. Rc5 {[%emt 0:00:57]} b3 {[%emt 0:00:14]} 35. Kc3 {[%emt 0:01:06]} Nf5 {[%emt 0:00:46]} 36. Kxb3 {[%emt 0:00:40]} Nd6 {[%emt 0:00:31]} 37. Kc3 {[%emt 0:00:58]} Rb8 {[%emt 0:00:11]} 38. b4 {[%emt 0:00:39]} Nb5+ {[%emt 0:00:15] [#]} 39. Rxb5 $1 {[%emt 0:00:01]} Rxb5 {[%emt 0:00:06]} 40. a4 {[%emt 0:00:10] Weighted Error Value: White=0.20 (precise) /Black=0.43} 1-0

[Event "SixDays Budapest May IM 2023"]
[Site "Budapest"]
[Date "2023.05.31"]
[Round "7.2"]
[White "Tancsa, Tamas"]
[Black "Arvind Ramnath Iyer"]
[Result "1-0"]
[Annotator "TA"]
[ECO "B76"]
[WhiteElo "2188"]
[BlackElo "1883"]
[PlyCount "71"]
[EventDate "2023.05.25"]
[EventType "tourn"]
[EventCountry "HUN"]
[SourceTitle "playchess.com"]
[Source "ChessBase"]
[SourceQuality "1"]
[TimeControl "5400+30"]

{[%evp 21,71,0,13,11,59,83,85,87,78,90,93,95,89,90,96,98,146,123,240,271,267,202,237,228,324,316,493,479,671,608,626,570,567,569,547,547,627,636,651,651,758,688,841,838,926,902,1389,800,5060,5058,29984,29985]} 1. e4 {[%emt 0:00:34]} c5 {[%emt 0:00:33]} 2. Nf3 {[%emt 0:00:10]} d6 {[%emt 0:00:05]} 3. d4 {[%emt 0:00:04]} cxd4 {[%emt 0:00:03]} 4. Nxd4 {[%emt 0:00:05]} Nf6 {[%emt 0:00:01]} 5. Nc3 {[%emt 0:00:10]} g6 {[%emt 0:00:04]} 6. Be3 {[%emt 0:00:06]} Bg7 {[%emt 0:00:04]} 7. f3 {[%emt 0:00:05]} O-O {[%emt 0:00:04]} 8. Qd2 {[%emt 0:00:05]} Nc6 {[%emt 0:00:03]} 9. O-O-O {[%emt 0:00:12]} d5 {[%emt 0:00:02]} 10. Nxc6 {[%emt 0:00:06]} bxc6 {[%emt 0:00:04]} 11. Bc4 {[%emt 0:00:10] 11.Bh6 is becoming the main line.} e6 {[%emt 0:05:11]} 12. Bb3 {[%emt 0:00:06] B76: Sicilian Dragon: Yugoslav Attack, 9 g4 and 9 0-0-0.} Qa5 {[%emt 0:01:04]} (12... Bb7 $11 {feels stronger.}) 13. Kb1 $14 {[%emt 0:14:24][%cal Rc3d5] Nxd5! would be deadly.} dxe4 {[%emt 0:01:37]} 14. Nxe4 {[%emt 0:01:35] [#] White is better.} Qxd2 $146 {[%emt 0:00:31]} ({Predecessor:} 14... Qe5 15. Nxf6+ Qxf6 16. Bd4 e5 17. Bc3 Be6 18. Bxe6 Qxe6 19. Rhe1 Rfe8 20. Qd7 Qc4 {1-0 Alsina Leal,D (2483)-Mueller,R (2306) EU-Cup 34th Porto Carras 2018 (6.1)}) 15. Nxf6+ {[%emt 0:00:17]} (15. Bxd2 Nxe4 16. fxe4 a5 $11) (15. Nxd2 Ba6 $11) 15... Bxf6 {[%emt 0:00:10]} 16. Rxd2 {[%emt 0:00:08]} Rd8 {[%emt 0:08:18]} 17. Rhd1 {[%emt 0:02:31][%cal Bh1d1,Bd1d2,Bd2d7][%mdl 32] White is more active.} Rxd2 {[%emt 0:03:57]} 18. Rxd2 {[%emt 0:00:01]} Ba6 {[%emt 0:07:03] [#]} (18... Be7 $142) 19. c4 $1 $16 {[%emt 0:05:17]} Bc8 {[%emt 0:03:24]} (19... Be5 $16 {is a better defense.}) 20. Ba4 $18 {[%emt 0:01:30]} Rb8 {[%emt 0:05:42]} 21. b3 {[%emt 0:06:12][%cal Bb2b3,Bb3c4][%mdl 32]} (21. Bxa7 Ra8 22. Bxc6 Rxa7 $17) 21... Ba6 {[%emt 0:04:32]} 22. Kc2 {[%emt 0:01:58]} (22. Bxc6 Bxc4 23. Bxa7 Rc8 $16) (22. Bxa7 $6 Rb7 $16) 22... Rc8 {[%emt 0:06:19]} (22... Bb5 {was called for.}) 23. Rd7 {[%emt 0:00:06]} (23. Bxa7 Kf8 24. Rd6 Bb5 $18) 23... Rb8 {[%emt 0:03:17]} (23... Bb5 {was worth a try.} 24. Rxa7 (24. cxb5 cxb5+ 25. Kd1 bxa4 $11) 24... Bd8 25. Bxb5 (25. cxb5 cxb5+ 26. Kd3 bxa4 $18) 25... cxb5) 24. Bxc6 {[%emt 0:01:45]} ({Weaker is} 24. Rxa7 Bb7 25. Bf4 e5 $18) 24... Bxc4 {[%emt 0:04:02]} (24... Rc8 $142 25. Be4 Bxc4) 25. bxc4 {[%emt 0:00:37]} Rb2+ {[%emt 0:00:06]} 26. Kc1 {[%emt 0:00:03]} Rxa2 {[%emt 0:00:32]} 27. f4 {[%emt 0:02:40]} Ra3 {[%emt 0:04:38]} 28. Kd2 {[%emt 0:00:54]} ({Not} 28. Rxa7 Rxe3 29. Be8 Rc3+ 30. Kd1 Rxc4 $11) 28... Ra2+ {[%emt 0:00:34]} 29. Kd3 {[%emt 0:00:23]} Ra3+ {[%emt 0:00:22]} 30. Ke4 {[%emt 0:00:41]} Ra2 {[%emt 0:01:04]} 31. g4 {[%emt 0:01:38][%cal Bg2g4,Bg4g5][%mdl 32]} Rxh2 {[%emt 0:00:58]} 32. g5 {[%emt 0:00:28]} Bb2 {[%emt 0:00:16]} 33. Rxa7 {[%emt 0:00:54]} Rh4 {[%emt 0:00:24]} 34. Bc5 {[%emt 0:02:38] [#] Intending Ra8+ and mate.} h5 {[%emt 0:01:16]} 35. Be8 {[%emt 0:00:57]} Rg4 {[%emt 0:02:12]} 36. Bxf7+ {[%emt 0:01:49] Black got outplayed after the opening.   Weighted Error Value: White=0.06 (flawless) /Black=0.44} 1-0

[Event "SixDays Budapest May IM 2023"]
[Site "Budapest"]
[Date "2023.05.31"]
[Round "7.4"]
[White "Horvath, David"]
[Black "Dudognon, Thibault"]
[Result "1/2-1/2"]
[Annotator "TA"]
[ECO "D30"]
[WhiteElo "2362"]
[BlackElo "2325"]
[PlyCount "21"]
[EventDate "2023.05.25"]
[EventType "tourn"]
[EventCountry "HUN"]
[SourceTitle "playchess.com"]
[Source "ChessBase"]
[SourceQuality "1"]
[TimeControl "5400+30"]

{[%evp 15,16,33,31]} 1. Nf3 {[%emt 0:00:34]} d5 {[%emt 0:00:37]} 2. d4 {[%emt 0:00:04]} Nf6 {[%emt 0:00:09]} 3. c4 {[%emt 0:00:06]} c6 {[%emt 0:00:07]} 4. e3 {[%emt 0:00:04]} e6 {[%emt 0:00:08]} 5. Nbd2 {[%emt 0:00:12]} Nbd7 {[%emt 0:00:10]} 6. Bd3 {[%emt 0:00:05]} Bd6 {[%emt 0:00:10]} 7. O-O {[%emt 0:00:05]} O-O {[%emt 0:00:11]} 8. e4 {[%emt 0:00:14]} e5 {[%emt 0:00:09] [#]} {Predecessor:} 9. exd5 $146 {D30: Queen's Gambit Declined: Systems without Nc3.} cxd5 10. cxd5 exd4 11. Ne4 {½-½ Peng,L (2549)-Mastrovasilis,D (2603) ITA-chT GpB 54th 2023 (5)} 1/2-1/2

[Event "SixDays Budapest May IM 2023"]
[Site "Budapest"]
[Date "2023.05.31"]
[Round "7.5"]
[White "Manu David Suthandram R"]
[Black "Ojas Kulkarni"]
[Result "1/2-1/2"]
[Annotator "TA"]
[ECO "A00"]
[WhiteElo "2332"]
[BlackElo "2230"]
[PlyCount "38"]
[EventDate "2023.05.25"]
[EventType "tourn"]
[EventCountry "HUN"]
[SourceTitle "playchess.com"]
[Source "ChessBase"]
[SourceQuality "1"]
[TimeControl "5400+30"]

{[%evp 18,21,-10,-26,0,0]} 1. e3 {[%emt 0:18:49]} Nf6 {[%emt 0:00:56]} 2. d4 {[%emt 0:00:07]} g6 {[%emt 0:00:21]} 3. Nf3 {[%emt 0:00:11]} Bg7 {[%emt 0:00:07]} 4. c4 {[%emt 0:00:05]} O-O {[%emt 0:00:52]} 5. Nc3 {[%emt 0:00:31]} c5 {[%emt 0:00:08]} 6. Be2 {[%emt 0:00:23]} cxd4 {[%emt 0:00:47]} 7. exd4 {[%emt 0:00:08]} d5 {[%emt 0:00:05]} 8. O-O {[%emt 0:01:32]} Nc6 {[%emt 0:00:05]} 9. h3 {[%emt 0:11:32]} dxc4 {[%emt 0:02:48]} 10. Bxc4 {[%emt 0:00:08]} Na5 {[%emt 0:00:08] D94: Grünfeld: 4 Nf3 Bg7 5 e3.} 11. Be2 {[%emt 0:03:32] [#] A rather calm draw.} {Predecessor:} Be6 $146 12. Bg5 Rc8 13. Rc1 Nc4 14. b3 Nd6 15. Re1 Nf5 16. Qd2 Qa5 17. Bd3 Rfe8 18. Re5 Qd8 19. Bb5 Rf8 {½-½ Peng,X (2410)-Sivuk,V (2560) Sanya Hainan op-A 2017 (6)} 1/2-1/2

[Event "SixDays Budapest May IM 2023"]
[Site "Budapest"]
[Date "2023.05.31"]
[Round "8.2"]
[White "Dudognon, Thibault"]
[Black "Manu David Suthandram R"]
[Result "1/2-1/2"]
[Annotator "TA"]
[ECO "B34"]
[WhiteElo "2325"]
[BlackElo "2332"]
[PlyCount "44"]
[EventDate "2023.05.25"]
[EventType "tourn"]
[EventCountry "HUN"]
[SourceTitle "playchess.com"]
[Source "ChessBase"]
[SourceQuality "1"]
[TimeControl "5400+30"]

{[%evp 24,44,18,29,58,53,56,54,87,65,70,38,31,35,28,20,17,0,16,-8,-7,-53,-31]} 1. e4 {[%emt 0:03:08]} c5 {[%emt 0:00:57]} 2. Nf3 {[%emt 0:00:06]} Nc6 {[%emt 0:00:05]} 3. d4 {[%emt 0:00:21]} cxd4 {[%emt 0:00:10]} 4. Nxd4 {[%emt 0:00:05]} Nf6 {[%emt 0:00:11]} 5. Nc3 {[%emt 0:00:05]} e5 {[%emt 0:00:04]} 6. Ndb5 {[%emt 0:00:06]} d6 {[%emt 0:00:03]} 7. Nd5 {[%emt 0:00:04]} Nxd5 {[%emt 0:00:06]} 8. exd5 {[%emt 0:00:03]} Ne7 {[%emt 0:00:08][%cal Bc6e7,Be7f5,Bf5h4,Bh4g6,Bg6e5][%mdl 32]} 9. c4 {[%emt 0:00:06]} Nf5 {[%emt 0:01:09]} 10. Bd3 {[%emt 0:00:06]} Be7 {[%emt 0:02:14]} 11. O-O {[%emt 0:06:09]} O-O {[%emt 0:07:24]} 12. a4 {[%emt 0:08:21] was the old line (12.f4).} a6 {[%emt 0:04:49]} 13. Nc3 {[%emt 0:00:26]} a5 {[%emt 0:23:31] B33: Sicilian: Pelikan and Sveshnikov Variations.} 14. Nb5 {[%emt 0:07:26]} Nh4 {[%emt 0:21:09]} 15. Be3 {[%emt 0:03:07][%cal Oc4c5] [#]} b6 $146 {[%emt 0:04:54] White is slightly better.} ({Predecessor:} 15... f5 16. f4 exf4 17. Bxf4 Ng6 18. Be3 Ne5 19. Be2 Bd7 20. Nd4 Bg5 21. Bf2 Bh4 22. Qb3 Bxf2+ 23. Rxf2 Qc7 24. Raf1 g6 25. Qc3 Rae8 26. b3 Qc5 {½-½ Kholmov,R (2480)-Ivanov,J (2300) Cheliabinsk 1989}) 16. Rb1 {[%emt 0:13:26] White has more active pieces. The black rooks are badly placed.} f5 {[%emt 0:16:53]} 17. f4 {[%emt 0:03:10]} (17. g3 $5 {[%cal Rg3h4]} Ng6 18. f4 $14) 17... exf4 {[%emt 0:00:31]} 18. Bxf4 {[%emt 0:01:03]} Ng6 {[%emt 0:00:13]} 19. Be3 {[%emt 0:10:35]} Ne5 {[%emt 0:01:16]} 20. Qc2 {[%emt 0:06:03][%cal Rd3f5]} g6 {[%emt 0:04:16]} 21. Rbe1 {[%emt 0:02:32]} Bd7 {[%emt 0:00:23]} 22. Nc3 {[%emt 0:09:11]} (22. Be2 $11) 22... Bg5 {[%emt 0:00:29] Weighted Error Value: White=0.19 (very precise) /Black=0.10 (very precise)} 1/2-1/2

[Event "SixDays Budapest May IM 2023"]
[Site "Budapest"]
[Date "2023.05.31"]
[Round "8.4"]
[White "Arvind Ramnath Iyer"]
[Black "Nemeth, Zalan"]
[Result "0-1"]
[Annotator "TA"]
[ECO "B33"]
[WhiteElo "1883"]
[BlackElo "2289"]
[PlyCount "76"]
[EventDate "2023.05.25"]
[EventType "tourn"]
[EventCountry "HUN"]
[SourceTitle "playchess.com"]
[Source "ChessBase"]
[SourceQuality "1"]
[TimeControl "5400+30"]

{[%evp 23,76,25,19,18,15,0,33,0,-6,-16,-9,-37,-37,-222,-230,-237,-213,-228,-147,-156,-115,-118,-60,-64,-60,-71,-72,-74,-68,-141,-89,-89,-86,-89,-80,-276,-276,-261,-268,-264,-264,-398,-369,-406,-268,-29981,-2741,-1816,-1762,-29987,-29988,-29988,-29989,-29989,-29990]} 1. e4 {[%emt 0:02:04]} c5 {[%emt 0:13:29]} 2. Nf3 {[%emt 0:00:12]} Nc6 {[%emt 0:00:04]} 3. d4 {[%emt 0:00:03]} cxd4 {[%emt 0:00:03]} 4. Nxd4 {[%emt 0:00:04]} Nf6 {[%emt 0:00:04]} 5. Nc3 {[%emt 0:00:04]} e5 {[%emt 0:00:04]} 6. Ndb5 {[%emt 0:00:02]} d6 {[%emt 0:00:04]} 7. Bg5 {[%emt 0:00:03]} a6 {[%emt 0:00:02]} 8. Na3 {[%emt 0:00:03]} b5 {[%emt 0:00:05]} 9. Nd5 {[%emt 0:00:02]} Be7 {[%emt 0:00:04]} 10. Bxf6 {[%emt 0:00:04]} Bxf6 {[%emt 0:00:04]} 11. c3 {[%emt 0:00:02]} O-O {[%emt 0:00:06]} 12. Nc2 {[%emt 0:00:02]} Rb8 $1 {[%emt 0:00:05][%mdl 4] is more profitable than 12...Bg5 at the moment.} 13. a4 {[%emt 0:00:05] B33: Sicilian: Pelikan and Sveshnikov Variations.} bxa4 {[%emt 0:00:04]} 14. Rxa4 {[%emt 0:00:31]} a5 {[%emt 0:03:37] [#]} 15. Nce3 $146 {White is slightly better.} ({Predecessor:} 15. Ra2 Be6 16. Bc4 Bg5 17. Nce3 g6 18. h4 Bxh4 19. g3 Bg5 20. f4 exf4 21. gxf4 {1-0 Kienboeck,B (2105)-Marakovits,N (2234) AUT-ch Vienna 2022 (7)}) 15... Rxb2 {[%emt 0:04:42]} 16. Nc4 {[%emt 0:02:16] Excellent horsemanship.} Rb8 {[%emt 0:01:21]} 17. Nxf6+ {[%emt 0:00:19]} Qxf6 {[%emt 0:09:14]} 18. Nxa5 $2 {[%emt 0:00:47]} (18. Be2 $15) 18... Nxa5 $19 {[%emt 0:01:21]} (18... Rb2 19. Be2 $17) 19. Rxa5 {[%emt 0:00:02]} Qg6 $1 {[%emt 0:02:49]} ({Inferior is} 19... Rb2 20. Be2 $17) 20. f3 {[%emt 0:03:35]} Be6 {[%emt 0:04:52] aiming for ...Qg5.} 21. Qc2 {[%emt 0:02:56]} Qg5 {[%emt 0:04:40]} 22. Kf2 {[%emt 0:03:48] Repels Qe3+} Rb3 {[%emt 0:15:27]} ({Black should play} 22... f5 $17 {...fxe4 would be deadly.} 23. h4 Qd8) 23. Rb5 $15 {[%emt 0:02:45] Hoping for h4.} Ra3 {[%emt 0:03:42]} 24. Bd3 {[%emt 0:01:40]} Rc8 $36 {[%emt 0:05:45][%mdl 2048] White must now prevent ...Qh4+. Black has strong initiative.} 25. c4 {[%emt 0:04:36]} g6 {[%emt 0:00:03] Black is much more active.} 26. Rhb1 {[%emt 0:03:11] [#]} (26. Rd1 $15) 26... Kg7 {[%emt 0:00:24]} ({And not} 26... Bd7 27. R5b2 $15) (26... Qf4 $142 $1 {[%cal Rf4h2]} 27. Rb8 Qxh2 28. Rxc8+ Bxc8) 27. R5b3 $17 {[%emt 0:08:57]} Rxb3 {[%emt 0:03:25]} 28. Qxb3 {[%emt 0:00:12]} Qd2+ {[%emt 0:00:32]} 29. Kg3 $2 {[%emt 0:01:13]} (29. Kf1 $17) 29... h5 $19 {[%emt 0:00:19][%cal Bh7h5,Bh5h4][%mdl 32]} 30. h3 {[%emt 0:00:42] [#]} h4+ $1 {[%emt 0:00:03][%mdl 512]} 31. Kh2 {[%emt 0:00:10] [#]} Bxh3 $1 {[%emt 0:00:39][%csl Gh3][%cal Rd2g2]} 32. Bf1 {[%emt 0:01:24]} (32. Kxh3 $2 {is a self mate.} Qf4 33. Rh1 Qg3#) (32. Qc2 {was worth a try.} Qf4+ 33. Kg1 Qe3+ 34. Kh1) 32... Be6 {[%emt 0:01:04]} 33. Rd1 {[%emt 0:02:34]} Qf2 {[%emt 0:02:38] ( -> ...h3)} 34. Qa3 $2 {[%emt 0:01:49]} (34. Qb4 $19) 34... Bxc4 {[%emt 0:01:33]} (34... h3 $142 35. Qxd6 hxg2 36. Qxe5+ f6 37. Rd7+ {[%mdl 64] Decoy} Bxd7 38. Qe7+ Kh6 39. Bxg2 Kg5 40. f4+ Qxf4+ 41. Kh1 Qc1+ 42. Kh2 Rh8+ 43. Bh3 Rxh3+ 44. Kg2 Qd2+ 45. Kg1 Rg3+ 46. Kh1 Qg2#) 35. Bxc4 {[%emt 0:00:38]} Rxc4 {[%emt 0:00:08]} 36. Qxd6 {[%emt 0:00:04]} Qg3+ {[%emt 0:00:15] Black mates.} 37. Kh1 {[%emt 0:00:33]} h3 {[%emt 0:00:11][%csl Gh3][%cal Rg3g2]} 38. Qd2 {[%emt 0:00:15]} Rd4 {[%emt 0:00:20][%mdl 64] Skewer.   Weighted Error Value: White=0.71/Black=0.35} 0-1